fUSD/lending_fUSD_20251001
["ID","MTS","AMOUNT","RATE_DAILY","PERIOD"]
[388790529,1759362634985,-500.0,0.00021917,2]
[388790530,1759362634994,-665.23,0.00021917,2]
[388790531,1759362635005,-970.2,0.00021917,2]
[388790532,1759362635016,-500.0,0.00021917,2]
[388790533,1759362635027,-833.78,0.00021917,2]
[388790534,1759362635038,-500.0,0.00021917,2]
[388790535,1759362635048,-545.72,0.00021917,2]
[388790536,1759362635060,-522.98,0.00021917,2]
[388790537,1759362635070,-500.0,0.00021917,2]
[388790538,1759362635080,-500.0,0.00021917,2]
[388790539,1759362635090,-500.0,0.00021917,2]
[388790540,1759362635100,-500.0,0.00021917,2]
[388790541,1759362635110,-500.0,0.00021917,2]
[388790542,1759362635120,-793.14,0.00021917,2]
[388790543,1759362635130,-500.0,0.00021917,2]
[388790544,1759362635139,-500.0,0.00021917,2]
[388790545,1759362635149,-500.0,0.00021917,2]
[388790546,1759362635164,-500.0,0.00021917,2]
[388790547,1759362635174,-500.0,0.00021917,2]
[388790548,1759362635183,-500.0,0.00021917,2]
[388790549,1759362635194,-547.61,0.00021917,2]
[388790550,1759362635203,-500.0,0.00021917,2]
[388790551,1759362635214,-636.56,0.00021917,2]
[388790552,1759362635223,-965.6,0.00021917,2]
[388790553,1759362635233,-500.0,0.00021917,2]
[388790554,1759362635243,-500.0,0.00021917,2]
[388790555,1759362635253,-500.0,0.00021917,2]
[388790556,1759362635262,-500.0,0.00021917,2]
[388790557,1759362635272,-500.0,0.00021917,2]
[388790558,1759362635282,-500.0,0.00021917,2]
[388790559,1759362635293,-1063.2,0.00021917,2]
[388790560,1759362635303,-500.0,0.00021917,2]
[388790561,1759362635313,-545.7,0.00021917,2]
[388790562,1759362635323,-500.0,0.00021917,2]
[388790563,1759362635333,-500.0,0.00021917,2]
[388790564,1759362635342,-500.0,0.00021917,2]
[388790565,1759362635352,-500.0,0.00021917,2]
[388790566,1759362635362,-500.0,0.00021917,2]
[388790567,1759362635371,-637.66,0.00021917,2]
[388790568,1759362635381,-500.0,0.00021917,2]
[388790569,1759362635391,-500.0,0.00021917,2]
[388790570,1759362635405,-500.0,0.00021917,2]
[388790571,1759362635415,-500.0,0.00021917,2]
[388790572,1759362635424,-1087.41,0.00021917,2]
[388790573,1759362635434,-500.0,0.00021917,2]
[388790574,1759362635445,-500.0,0.00021917,2]
[388790575,1759362635455,-500.0,0.00021917,2]
[388790576,1759362635466,-310.25199541,0.00021917,2]
[388790577,1759362635477,-1761.77,0.00021917,2]
[388790578,1759362635486,-500.0,0.00021917,2]
[388790579,1759362635496,-500.0,0.00021917,2]
[388790580,1759362635506,-500.0,0.00021917,2]
[388790581,1759362635516,-500.0,0.00021917,2]
[388790582,1759362635526,-209.1743689,0.00021917,2]
[388790583,1759362635536,-500.0,0.00021917,2]
[388790584,1759362635545,-1461.12,0.00021917,2]
[388790585,1759362635555,-1944.79,0.00021917,2]
[388790586,1759362635566,-1253.34,0.00021917,2]
[388790587,1759362635575,-500.0,0.00021917,2]
[388790588,1759362635585,-500.0,0.00021917,2]
[388790589,1759362635595,-202.84802413,0.00021917,2]
[388790590,1759362635605,-287.84333115,0.00021917,2]
[388790591,1759362635614,-500.0,0.00021917,2]
[388790592,1759362635624,-500.0,0.00021917,2]
[388790593,1759362635633,-1224.6,0.00021917,2]
[388790594,1759362635643,-500.0,0.00021917,2]
[388790595,1759362635654,-500.0,0.00021917,2]
[388790596,1759362635664,-1254.36,0.00021917,2]
[388790597,1759362635673,-1027.51,0.00021917,2]
[388790599,1759362635683,-281.37035731,0.00021917,2]
[388790600,1759362635693,-1550.83,0.00021917,2]
[388790601,1759362635702,-865.74,0.00021917,2]
[388790602,1759362635711,-500.0,0.00021917,2]
[388790603,1759362635721,-844.23,0.00021917,2]
[388790604,1759362635731,-500.0,0.00021917,2]
[388790605,1759362635741,-1006.79,0.00021917,2]
[388790606,1759362635750,-500.0,0.00021917,2]
[388790607,1759362635760,-2025.03,0.00021917,2]
[388790608,1759362635769,-500.0,0.00021917,2]
[388790610,1759362635779,-500.0,0.00021917,2]
[388790611,1759362635789,-500.0,0.00021917,2]
[388790612,1759362635799,-643.31,0.00021917,2]
[388790613,1759362635810,-1402.02,0.00021917,2]
[388790614,1759362635820,-332.16,0.00021917,2]
[388790615,1759362635829,-764.97,0.00021917,2]
[388790616,1759362635839,-500.0,0.00021917,2]
[388790617,1759362635849,-500.0,0.00021917,2]
[388790618,1759362635858,-500.0,0.00021917,2]
[388790619,1759362635868,-500.0,0.00021917,2]
[388790620,1759362635878,-500.0,0.00021917,2]
[388790621,1759362635887,-500.0,0.00021917,2]
[388790622,1759362635896,-170.78,0.00021917,2]
[388790623,1759362635906,-505.29,0.00021917,2]
[388790624,1759362635915,-500.0,0.00021917,2]
[388790625,1759362635925,-500.0,0.00021917,2]
[388790626,1759362635935,-500.0,0.00021917,2]
[388790627,1759362635944,-500.0,0.00021917,2]
[388790628,1759362635953,-500.0,0.00021917,2]
[388790629,1759362635963,-500.0,0.00021917,2]
[388790630,1759362635972,-500.0,0.00021917,2]
[388790631,1759362635982,-1987.34,0.00021917,2]
[388790632,1759362635991,-500.0,0.00021917,2]
[388790633,1759362636000,-500.0,0.00021917,2]
[388790634,1759362636010,-500.0,0.00021917,2]
[388790635,1759362636020,-500.0,0.00021917,2]
[388790636,1759362636029,-500.0,0.00021917,2]
[388790637,1759362636039,-2475.85,0.00021917,2]
[388790638,1759362636049,-2417.66,0.00021917,2]
[388790639,1759362636058,-500.0,0.00021917,2]
[388790640,1759362636068,-654.3,0.00021917,2]
[388790641,1759362636077,-521.08,0.00021917,2]
[388790642,1759362636087,-982.76,0.00021917,2]
[388790643,1759362636097,-500.0,0.00021917,2]
[388790644,1759362636106,-500.0,0.00021917,2]
[388790645,1759362636115,-529.36721032,0.00021917,2]
[388790646,1759362636125,-1176.04,0.00021917,2]
[388790647,1759362636135,-500.0,0.00021917,2]
[388790648,1759362636144,-500.0,0.00021917,2]
[388790649,1759362636154,-500.0,0.00021917,2]
[388790650,1759362636164,-1146.48,0.00021917,2]
[388790651,1759362636174,-500.0,0.00021917,2]
[388790652,1759362636184,-900.6,0.00021917,2]
[388790653,1759362636194,-701.11,0.00021917,2]
[388790654,1759362636203,-500.0,0.00021917,2]
[388790655,1759362636213,-1035.87,0.00021917,2]
[388790656,1759362636222,-500.0,0.00021917,2]
[388790657,1759362636235,-500.0,0.00021917,2]
[388790658,1759362636245,-2583.02,0.00021917,2]
[388790659,1759362636257,-2297.13,0.00021917,2]
[388790660,1759362636270,-798.02,0.00021917,2]
[388790661,1759362636407,-500.0,0.00021917,2]
[388790662,1759362636417,-500.0,0.00021917,2]
[388790663,1759362636426,-500.0,0.00021917,2]
[388790664,1759362636436,-503.71,0.00021917,2]
[388790665,1759362636446,-500.0,0.00021917,2]
[388790666,1759362636455,-3005.93,0.00021917,2]
[388790667,1759362636464,-500.0,0.00021917,2]
[388790668,1759362636476,-2065.77,0.00021917,2]
[388790669,1759362636485,-500.0,0.00021917,2]
[388790670,1759362636494,-850.01,0.00021917,2]
[388790671,1759362636503,-852.48,0.00021917,2]
[388790672,1759362636512,-1090.16,0.00021917,2]
[388790673,1759362636522,-1925.46,0.00021917,2]
[388790674,1759362636531,-754.42,0.00021917,2]
[388790675,1759362636540,-6115.12,0.00021917,2]
[388790676,1759362636549,-2307.91,0.00021917,2]
[388790677,1759362636558,-500.0,0.00021917,2]
[388790678,1759362636567,-584.03,0.00021917,2]
[388790679,1759362636576,-500.0,0.00021917,2]
[388790680,1759362636585,-2386.56,0.00021917,2]
[388790681,1759362636595,-500.0,0.00021917,2]
[388790682,1759362636605,-2425.23,0.00021917,2]
[388790683,1759362636614,-5156.57,0.00021917,2]
[388790684,1759362636623,-673.34,0.00021917,2]
[388790685,1759362636632,-500.0,0.00021917,2]
[388790686,1759362636642,-1886.75,0.00021917,2]
[388790687,1759362636651,-1140.08,0.00021917,2]
[388790688,1759362636660,-159.87515693,0.00021917,2]
[388790689,1759362636671,-631.99,0.00021917,2]
[388790690,1759362636681,-2160.9,0.00021917,2]
[388790691,1759362636690,-500.0,0.00021917,2]
[388790692,1759362636700,-805.79,0.00021917,2]
[388790693,1759362636709,-500.0,0.00021917,2]
[388790694,1759362636719,-500.0,0.00021917,2]
[388790695,1759362636729,-1586.72,0.00021917,2]
[388790696,1759362636739,-1711.1,0.00021917,2]
[388790697,1759362636749,-2349.57,0.00021917,2]
[388790698,1759362636758,-1930.73,0.00021917,2]
[388790699,1759362636768,-842.49,0.00021917,2]
[388790700,1759362636778,-1453.91,0.00021917,2]
[388790701,1759362636788,-500.0,0.00021917,2]
[388790702,1759362636798,-500.0,0.00021917,2]
[388790703,1759362636807,-513.73,0.00021917,2]
[388790704,1759362636817,-500.0,0.00021917,2]
[388790705,1759362636827,-1888.08,0.00021917,2]
[388790706,1759362636837,-1069.4,0.00021917,2]
[388790707,1759362636846,-550.05,0.00021917,2]
[388790708,1759362636856,-1696.98,0.00021917,2]
[388790709,1759362636865,-3330.05,0.00021917,2]
[388790710,1759362636874,-500.0,0.00021917,2]
[388790711,1759362636884,-591.04,0.00021917,2]
[388790712,1759362636893,-2118.35,0.00021917,2]
[388790713,1759362636902,-5746.6,0.00021917,2]
[388790714,1759362636911,-500.0,0.00021917,2]
[388790715,1759362636920,-500.0,0.00021917,2]
[388790716,1759362636930,-774.89,0.00021917,2]
[388790717,1759362636939,-500.0,0.00021917,2]
[388790718,1759362636948,-500.0,0.00021917,2]
[388790719,1759362636957,-1164.64,0.00021917,2]
[388790720,1759362636966,-2509.21,0.00021917,2]
[388790721,1759362636975,-581.63,0.00021917,2]
[388790722,1759362636984,-3030.35,0.00021917,2]
[388790723,1759362636994,-1070.77,0.00021917,2]
[388790724,1759362637004,-500.0,0.00021917,2]
[388790725,1759362637013,-500.0,0.00021917,2]
[388790726,1759362637022,-1856.05,0.00021917,2]
[388790727,1759362637031,-2908.73,0.00021917,2]
[388790728,1759362637041,-1992.43,0.00021917,2]
[388790729,1759362637050,-2103.88,0.00021917,2]
[388790730,1759362637061,-500.0,0.00021917,2]
[388790731,1759362637070,-500.0,0.00021917,2]
[388790732,1759362637079,-1696.22,0.00021917,2]
[388790733,1759362637088,-1011.01,0.00021917,2]
[388790734,1759362637098,-500.0,0.00021917,2]
[388790735,1759362637107,-2620.81,0.00021917,2]
[388790736,1759362637116,-500.0,0.00021917,2]
[388790737,1759362637125,-936.86,0.00021917,2]
[388790738,1759362637134,-500.0,0.00021917,2]
[388790739,1759362637143,-167.51351996,0.00021917,2]
[388790740,1759362637153,-1968.97,0.00021917,2]
[388790741,1759362637162,-1317.98,0.00021917,2]
[388790742,1759362637172,-528.06,0.00021917,2]
[388790743,1759362637181,-5431.27,0.00021917,2]
[388790744,1759362637190,-500.0,0.00021917,2]
[388790745,1759362637199,-500.0,0.00021917,2]
[388790746,1759362637209,-2877.7,0.00021917,2]
[388790747,1759362637218,-500.0,0.00021917,2]
[388790748,1759362637227,-2719.9,0.00021917,2]
[388790749,1759362637236,-2071.82,0.00021917,2]
[388790750,1759362637245,-1836.18,0.00021917,2]
[388790751,1759362637254,-500.0,0.00021917,2]
[388790752,1759362637263,-1665.03,0.00021917,2]
[388790753,1759362637272,-500.0,0.00021917,2]
[388790754,1759362637282,-1228.55,0.00021917,2]
[388790755,1759362637291,-1887.07,0.00021917,2]
[388790756,1759362637300,-912.24,0.00021917,2]
[388790757,1759362637309,-500.0,0.00021917,2]
[388790758,1759362637319,-500.0,0.00021917,2]
[388790759,1759362637328,-2511.17,0.00021917,2]
[388790760,1759362637337,-2150.34,0.00021917,2]
[388790761,1759362637346,-500.0,0.00021917,2]
[388790762,1759362637356,-702.81,0.00021917,2]
[388790763,1759362637365,-2131.03,0.00021917,2]
[388790764,1759362637374,-500.0,0.00021917,2]
[388790765,1759362637383,-2023.72,0.00021917,2]
[388790766,1759362637393,-2060.61,0.00021917,2]
[388790767,1759362637405,-563.15,0.00021917,2]
[388790768,1759362637414,-3311.13,0.00021917,2]
[388790769,1759362637423,-500.0,0.00021917,2]
[388790770,1759362637433,-500.0,0.00021917,2]
[388790771,1759362637445,-1748.72,0.00021917,2]
[388790772,1759362637454,-1544.11,0.00021917,2]
[388790773,1759362637464,-500.0,0.00021917,2]
[388790774,1759362637473,-907.98,0.00021917,2]
[388790775,1759362637483,-380.82057291,0.00021917,2]
[388790776,1759362637493,-862.42,0.00021917,2]
[388790777,1759362637502,-500.0,0.00021917,2]
[388790778,1759362637512,-500.0,0.00021917,2]
[388790779,1759362637521,-1345.33,0.00021917,2]
[388790780,1759362637531,-500.0,0.00021917,2]
[388790781,1759362637540,-371.84341347,0.00021917,2]
[388790782,1759362637549,-2429.17,0.00021917,2]
[388790783,1759362637559,-1357.35,0.00021917,2]
[388790784,1759362637568,-2781.87,0.00021917,2]
[388790785,1759362637579,-2406.8,0.00021917,2]
[388790786,1759362637589,-1374.98,0.00021917,2]
[388790787,1759362637598,-1772.73,0.00021917,2]
[388790788,1759362637608,-831.21,0.00021917,2]
[388790789,1759362637617,-1395.81,0.00021917,2]
[388790790,1759362637627,-500.0,0.00021917,2]
[388790791,1759362637636,-1956.89,0.00021917,2]
[388790792,1759362637645,-500.0,0.00021917,2]
[388790793,1759362637655,-2539.92,0.00021917,2]
[388790794,1759362637664,-1525.28,0.00021917,2]
[388790795,1759362637675,-500.0,0.00021917,2]
[388790796,1759362637684,-1403.36,0.00021917,2]
[388790797,1759362637694,-500.0,0.00021917,2]
[388790798,1759362637704,-1118.83,0.00021917,2]
[388790799,1759362637714,-500.0,0.00021917,2]
[388790800,1759362637724,-500.0,0.00021917,2]
[388790801,1759362637734,-1859.75,0.00021917,2]
[388790802,1759362637744,-2165.44,0.00021917,2]
[388790803,1759362637754,-1309.33,0.00021917,2]
[388790804,1759362637763,-500.0,0.00021917,2]
[388790805,1759362637773,-500.0,0.00021917,2]
[388790806,1759362637783,-500.0,0.00021917,2]
[388790807,1759362637793,-1093.2,0.00021917,2]
[388790808,1759362637802,-1634.3,0.00021917,2]
[388790809,1759362637812,-1231.93,0.00021917,2]
[388790810,1759362637821,-500.0,0.00021917,2]
[388790811,1759362637830,-500.0,0.00021917,2]
[388790812,1759362637840,-500.0,0.00021917,2]
[388790813,1759362637850,-4678.47,0.00021917,2]
[388790814,1759362637861,-2249.71,0.00021917,2]
[388790815,1759362637870,-500.0,0.00021917,2]
[388790816,1759362637880,-1174.82,0.00021917,2]
[388790817,1759362637889,-500.0,0.00021917,2]
[388790818,1759362637899,-557.11,0.00021917,2]
[388790819,1759362637910,-500.0,0.00021917,2]
[388790820,1759362637920,-1297.42,0.00021917,2]
[388790821,1759362637929,-920.57,0.00021917,2]
[388790822,1759362637939,-747.08,0.00021917,2]
[388790823,1759362637948,-5776.59,0.00021917,2]
[388790824,1759362637958,-500.0,0.00021917,2]
[388790825,1759362637968,-500.0,0.00021917,2]
[388790826,1759362637977,-2136.67,0.00021917,2]
[388790827,1759362637987,-500.0,0.00021917,2]
[388790828,1759362637997,-500.0,0.00021917,2]
[388790829,1759362638006,-500.0,0.00021917,2]
[388790830,1759362638016,-500.0,0.00021917,2]
[388790831,1759362638026,-500.0,0.00021917,2]
[388790832,1759362638036,-500.0,0.00021917,2]
[388790833,1759362638046,-500.0,0.00021917,2]
[388790834,1759362638056,-500.0,0.00021917,2]
[388790835,1759362638066,-500.0,0.00021917,2]
[388790836,1759362638077,-500.0,0.00021917,2]
[388790837,1759362638087,-500.0,0.00021917,2]
[388790838,1759362638096,-666.75,0.00021917,2]
[388790839,1759362638106,-500.0,0.00021917,2]
[388790840,1759362638116,-500.0,0.00021917,2]
[388790841,1759362638125,-500.0,0.00021917,2]
[388790842,1759362638135,-500.0,0.00021917,2]
[388790843,1759362638145,-500.0,0.00021917,2]
[388790845,1759362638156,-979.46,0.00021917,2]
[388790847,1759362638166,-500.0,0.00021917,2]
[388790848,1759362638176,-247.22,0.00021917,2]
[388790849,1759362638185,-546.73,0.00021917,2]
[388790850,1759362638195,-1719.66,0.00021917,2]
[388790852,1759362638204,-827.7,0.00021917,2]
[388790854,1759362638214,-500.0,0.00021917,2]
[388790856,1759362638223,-4360.1,0.00021917,2]
[388790857,1759362638233,-500.0,0.00021917,2]
[388790860,1759362638243,-500.0,0.00021917,2]
[388790862,1759362638252,-505.48432646,0.00021917,2]
[388790863,1759362638262,-1296.24,0.00021917,2]
[388790865,1759362638272,-500.0,0.00021917,2]
[388790866,1759362638282,-500.0,0.00021917,2]
[388790867,1759362638292,-500.0,0.00021917,2]
[388790868,1759362638302,-1698.44,0.00021917,2]
[388790869,1759362638311,-500.0,0.00021917,2]
[388790870,1759362638321,-500.0,0.00021917,2]
[388790871,1759362638331,-1094.86,0.00021917,2]
[388790872,1759362638341,-577.83,0.00021917,2]
[388790873,1759362638351,-500.0,0.00021917,2]
[388790874,1759362638361,-500.0,0.00021917,2]
[388790875,1759362638371,-1816.58,0.00021917,2]
[388790876,1759362638381,-524.75,0.00021917,2]
[388790877,1759362638392,-500.0,0.00021917,2]
[388790878,1759362638404,-500.0,0.00021917,2]
[388790879,1759362638414,-500.0,0.00021917,2]
[388790880,1759362638425,-1777.6,0.00021917,2]
[388790881,1759362638435,-527.09,0.00021917,2]
[388790882,1759362638446,-500.0,0.00021917,2]
[388790883,1759362638456,-755.69,0.00021917,2]
[388790884,1759362638466,-2801.45,0.00021917,2]
[388790885,1759362638477,-2029.44,0.00021917,2]
[388790886,1759362638487,-500.0,0.00021917,2]
[388790887,1759362638496,-500.0,0.00021917,2]
[388790888,1759362638506,-500.0,0.00021917,2]
[388790889,1759362638516,-500.0,0.00021917,2]
[388790890,1759362638526,-974.29,0.00021917,2]
[388790891,1759362638536,-594.78,0.00021917,2]
[388790892,1759362638546,-521.34,0.00021917,2]
[388790893,1759362638556,-2414.32,0.00021917,2]
[388790894,1759362638566,-2302.21,0.00021917,2]
[388790895,1759362638577,-1421.05,0.00021917,2]
[388790896,1759362638586,-500.0,0.00021917,2]
[388790897,1759362638597,-301.04246626,0.00021917,2]
[388790898,1759362638607,-1260.06,0.00021917,2]
[388790899,1759362638616,-500.0,0.00021917,2]
[388790900,1759362638626,-1765.01,0.00021917,2]
[388790901,1759362638637,-500.0,0.00021917,2]
[388790902,1759362638647,-1066.36,0.00021917,2]
[388790903,1759362638658,-500.0,0.00021917,2]
[388790904,1759362638669,-615.93966836,0.00021917,2]
[388790905,1759362638679,-523.06,0.00021917,2]
[388790906,1759362638690,-1116.44,0.00021917,2]
[388790908,1759362638701,-906.64,0.00021917,2]
[388790910,1759362638711,-1655.47,0.00021917,2]
[388790912,1759362638721,-500.0,0.00021917,2]
[388790914,1759362638732,-736.1,0.00021917,2]
[388790916,1759362638742,-2136.04,0.00021917,2]
[388790918,1759362638753,-500.0,0.00021917,2]
[388790920,1759362638763,-1253.21,0.00021917,2]
[388790922,1759362638773,-2424.41,0.00021917,2]
[388790924,1759362638782,-2131.31,0.00021917,2]
[388790926,1759362638793,-638.13,0.00021917,2]
[388790928,1759362638804,-1920.46,0.00021917,2]
[388790930,1759362638814,-603.98,0.00021917,2]
[388790932,1759362638824,-569.59,0.00021917,2]
[388790934,1759362638834,-500.0,0.00021917,2]
[388790936,1759362638847,-6270.13,0.00021917,2]
[388790938,1759362638857,-1746.23,0.00021917,2]
[388790940,1759362638868,-500.0,0.00021917,2]
[388790942,1759362638878,-500.0,0.00021917,2]
[388790945,1759362638890,-500.0,0.00021917,2]
[388790946,1759362638901,-550.66,0.00021917,2]
[388790948,1759362638911,-500.0,0.00021917,2]
[388790950,1759362638922,-847.91,0.00021917,2]
[388790952,1759362638932,-492.98812027,0.00021917,2]
[388790953,1759362638943,-827.17,0.00021917,2]
[388790955,1759362638953,-500.0,0.00021917,2]
[388790957,1759362638963,-500.0,0.00021917,2]
[388790959,1759362638974,-500.95183051,0.00021917,2]
[388790961,1759362638984,-1285.71,0.00021917,2]
[388790962,1759362638994,-1068.67,0.00021917,2]
[388790964,1759362639005,-500.0,0.00021917,2]
[388790966,1759362639017,-512.49,0.00021917,2]
[388790968,1759362639027,-669.73,0.00021917,2]
[388790969,1759362639037,-789.76,0.00021917,2]
[388790971,1759362639048,-5592.97,0.00021917,2]
[388790973,1759362639058,-500.0,0.00021917,2]
[388790975,1759362639069,-500.0,0.00021917,2]
[388790977,1759362639079,-566.18,0.00021917,2]
[388790978,1759362639090,-535.21,0.00021917,2]
[388790980,1759362639100,-500.0,0.00021917,2]
[388790982,1759362639111,-2257.38,0.00021917,2]
[388790984,1759362639122,-528.67,0.00021917,2]
[388790985,1759362639133,-5749.33,0.00021917,2]
[388790987,1759362639143,-2433.79,0.00021917,2]
[388790989,1759362639154,-1692.99,0.00021917,2]
[388790991,1759362639165,-500.0,0.00021917,2]
[388790992,1759362639175,-500.0,0.00021917,2]
[388790994,1759362639186,-2518.61,0.00021917,2]
[388790996,1759362639200,-500.0,0.00021917,2]
[388790998,1759362639210,-782.76,0.00021917,2]
[388791000,1759362639220,-1250.84,0.00021917,2]
[388791002,1759362639230,-1900.68,0.00021917,2]
[388791004,1759362639240,-1638.93,0.00021917,2]
[388791005,1759362639250,-500.0,0.00021917,2]
[388791007,1759362639261,-500.0,0.00021917,2]
[388791009,1759362639271,-500.0,0.00021917,2]
[388791011,1759362639281,-500.0,0.00021917,2]
[388791013,1759362639291,-986.5,0.00021917,2]
[388791015,1759362639300,-500.0,0.00021917,2]
[388791017,1759362639310,-2204.13,0.00021917,2]
[388791018,1759362639321,-2843.92,0.00021917,2]
[388791020,1759362639331,-500.0,0.00021917,2]
[388791022,1759362639341,-501.8351446,0.00021917,2]
[388791024,1759362639351,-1266.38,0.00021917,2]
[388791025,1759362639362,-497.69169049,0.00021917,2]
[388791027,1759362639372,-735.26,0.00021917,2]
[388791029,1759362639382,-500.0,0.00021917,2]
[388791031,1759362639393,-500.0,0.00021917,2]
[388791033,1759362639407,-500.0,0.00021917,2]
[388791035,1759362639417,-500.0,0.00021917,2]
[388791036,1759362639428,-1233.17,0.00021917,2]
[388791038,1759362639439,-1103.05158355,0.00021917,2]
[388791105,1759362640182,-963.63841645,0.00021917,2]
[388791107,1759362640193,-1840.83,0.00021917,2]
[388791109,1759362640204,-500.0,0.00021917,2]
[388791110,1759362640214,-500.0,0.00021917,2]
[388791112,1759362640224,-500.0,0.00021917,2]
[388791114,1759362640235,-2392.43,0.00021917,2]
[388791117,1759362640245,-500.0,0.00021917,2]
[388791119,1759362640255,-500.0,0.00021917,2]
[388791121,1759362640265,-559.61,0.00021917,2]
[388791123,1759362640275,-807.25,0.00021917,2]
[388791125,1759362640285,-782.19,0.00021917,2]
[388791127,1759362640295,-991.18,0.00021917,2]
[388791129,1759362640305,-500.0,0.00021917,2]
[388791131,1759362640315,-568.12,0.00021917,2]
[388791133,1759362640325,-4428.45,0.00021917,2]
[388791135,1759362640336,-3124.54,0.00021917,2]
[388791137,1759362640346,-727.53,0.00021917,2]
[388791140,1759362640355,-500.0,0.00021917,2]
[388791142,1759362640366,-2207.36,0.00021917,2]
[388791144,1759362640376,-596.39,0.00021917,2]
[388791146,1759362640386,-500.0,0.00021917,2]
[388791148,1759362640397,-2257.51,0.00021917,2]
[388791150,1759362640410,-500.0,0.00021917,2]
[388791152,1759362640421,-212.75331741,0.00021917,2]
[388791154,1759362640431,-2274.93,0.00021917,2]
[388791156,1759362640442,-500.0,0.00021917,2]
[388791158,1759362640452,-500.0,0.00021917,2]
[388791159,1759362640463,-500.0,0.00021917,2]
[388791160,1759362640473,-1942.3,0.00021917,2]
[388791161,1759362640485,-500.0,0.00021917,2]
[388791162,1759362640496,-500.0,0.00021917,2]
[388791163,1759362640506,-1986.12,0.00021917,2]
[388791164,1759362640517,-2392.21,0.00021917,2]
[388791165,1759362640528,-500.0,0.00021917,2]
[388791166,1759362640539,-500.0,0.00021917,2]
[388791167,1759362640550,-500.0,0.00021917,2]
[388791168,1759362640562,-500.0,0.00021917,2]
[388791169,1759362640573,-3766.76,0.00021917,2]
[388791170,1759362640584,-500.0,0.00021917,2]
[388791171,1759362640594,-500.0,0.00021917,2]
[388791172,1759362640604,-3365.74,0.00021917,2]
[388791173,1759362640614,-2102.99,0.00021917,2]
[388791174,1759362640625,-500.0,0.00021917,2]
[388791176,1759362640635,-586.23406514,0.00021917,2]
[388791178,1759362640645,-502.58,0.00021917,2]
[388791180,1759362640657,-500.0,0.00021917,2]
[388791182,1759362640668,-502.05480445,0.00021917,2]
[388791184,1759362640678,-500.0,0.00021917,2]
[388791186,1759362640688,-1556.26,0.00021917,2]
[388791188,1759362640698,-1351.0,0.00021917,2]
[388791190,1759362640709,-500.0,0.00021917,2]
[388791192,1759362640719,-500.0,0.00021917,2]
[388791194,1759362640729,-6015.6,0.00021917,2]
[388791196,1759362640740,-918.42,0.00021917,2]
[388791198,1759362640750,-506.37,0.00021917,2]
[388791200,1759362640761,-3573.75,0.00021917,2]
[388791202,1759362640771,-1785.86,0.00021917,2]
[388791204,1759362640782,-16995.15934084,0.00021917,2]
[388791206,1759362640797,-7795.99065916,0.00021917,2]
[388791208,1759362640807,-500.0,0.00021917,2]
[388791210,1759362640818,-857.5,0.00021917,2]
[388791212,1759362640829,-344.50082965,0.00021917,2]